Workbook

Sheet Лист1
A1: Школа | C1: ГБОУ "Маскаринская школа- интернат для детей с ограниченными возможностями здоровья" | F1: Утвердил: | G1: должность | H1: директор
A2: Типовое примерное меню приготавливаемых блюд | G2: фамилия | H2: Сабитов Ш. Н.
A3: Возрастная категория | E3: 7-11 лет | G3: дата | H3: 4 | I3: 9 | J3: 2025
H4: день | I4: месяц | J4: год
A5: Неделя | B5: День недели | C5: Прием пищи | D5: Раздел меню | E5: Блюда | F5: Вес блюда, г | G5: Белки | H5: Жиры | I5: Углеводы | J5: Калорийность | K5: Цена
A6: 1 | B6: 4 | C6: Завтрак | D6: гор.блюдо | E6: Каша геркулес молочный | F6: 200/10 | G6: 9.7 | H6: 8.3 | I6: 36.8 | J6: 212 | K6: 14.66
D7: гор.напиток | E7: Кофейный напиток из цикория | F7: 200 | G7: 4.32 | H7: 4.6 | I7: 9.6 | J7: 135 | K7: 10.16
D8: хлеб | E8: Хлеб пшеничный | F8: 120 | G8: 3.1 | H8: 0.2 | I8: 20.1 | J8: 284.1 | K8: 8.6
D9: масло слив. | E9: Масло слив. | F9: 15 | G9: 0.4 | H9: 62.5 | I9: 0.8 | J9: 205 | K9: 9.64
D10: сыр | E10: Сыр | F10: 24 | G10: 4.3 | H10: 5.4 | I10: 0 | J10: 67.4 | K10: 11.92
D11: фрукты | E11: Апельсин | F11: 100 | G11: 1.4 | H11: 0.3 | I11: 8.1 | J11: 36 | K11: 13.9
D13: итого | G13: =SUM(G6:G12) -> 23.22 | H13: =SUM(H6:H12) -> 81.3 | I13: =SUM(I6:I12) -> 75.4 | J13: =SUM(J6:J12) -> 939.5 | K13: =SUM(K6:K12) -> 68.88
A14: =A6 -> 1 | B14: =B6 -> 4 | C14: Завтрак 2 | D14: фрукты | E14: Банан | F14: 100 | G14: 1.4 | H14: 0.3 | I14: 12.1 | J14: 96 | K14: 15.6
D15: хлеб бел. | E15: Хлеб пшеничный | F15: 160 | G15: 3.1 | H15: 0.2 | I15: 20.1 | J15: 378.8 | K15: 11.47
D16: напиток | E16: Компот из смеси сухофруктов | F16: 200 | G16: 4 | H16: 0.06 | I16: 35.2 | J16: 110 | K16: 2.53
D17: кондит.изд. | E17: Вафли | F17: 30 | G17: 1 | H17: 8.8 | I17: 18.8 | J17: 154.2 | K17: 6
D18: итого | F18: =SUM(F14:F17) -> 490 | G18: =SUM(G14:G17) -> 9.5 | H18: =SUM(H14:H17) -> 9.36 | I18: =SUM(I14:I17) -> 86.2 | J18: =SUM(J14:J17) -> 739 | K18: =SUM(K14:K17) -> 35.6
A19: =A6 -> 1 | B19: =B6 -> 4 | C19: Обед | D19: закуска | E19: Салат из белокачанной капусты припущенный | F19: 100 | G19: 2.1 | H19: 8.5 | I19: 10.5 | J19: 105.5 | K19: 5.74
D20: 1 блюдо | E20: Рассольник с перловкой со сметаной | F20: 250/10 | G20: 4.65 | H20: 10.01 | I20: 10.08 | J20: 322 | K20: 21.1
D21: 2 блюдо | E21: Картофельное пюре | F21: 200/10 | G21: 4.9 | H21: 7.2 | I21: 34 | J21: 207 | K21: 19.48
D22: гарнир | E22: Котлеты из говядины | F22: 100 | G22: 21 | H22: 22.2 | I22: 15 | J22: 217.2 | K22: 37.4
D23: напиток | E23: Сок | F23: 200 | G23: 0.8 | H23: 0 | I23: 23 | J23: 94 | K23: 12.88
D24: хлеб бел.
D25: хлеб черн. | E25: Хлеб "Дарницкий" | F25: 80 | G25: 2.6 | H25: 0.4 | I25: 17 | J25: 164.8 | K25: 5.19
D28: итого | F28: =SUM(F19:F27) -> 480 | G28: =SUM(G19:G27) -> 36.05 | H28: =SUM(H19:H27) -> 48.31 | I28: =SUM(I19:I27) -> 109.58 | J28: =SUM(J19:J27) -> 1110.5 | K28: =SUM(K19:K27) -> 101.79
A29: =A6 -> 1 | B29: =B6 -> 4 | C29: Полдник | D29: кисломол.
D30: фрукты
D33: итого | F33: =SUM(F29:F32) -> 0 | G33: =SUM(G29:G32) -> 0 | H33: =SUM(H29:H32) -> 0 | I33: =SUM(I29:I32) -> 0 | J33: =SUM(J29:J32) -> 0
A34: =A6 -> 1 | B34: =B6 -> 4 | C34: Ужин | D34: хлеб черн. | E34: Хлеб "Дарницкий" | F34: 80 | G34: 2.6 | H34: 0.4 | I34: 17 | J34: 164.8 | K34: 5.19
D35: масло слив. | E35: Масло слив. | F35: 15 | G35: 0.4 | H35: 62.5 | I35: 0.8 | J35: 205 | K35: 6.61
D36: гор.напиток | E36: Чай с мол. | F36: 200 | G36: 1.64 | H36: 1.64 | I36: 2.38 | J36: 30 | K36: 7.85
D37: 2 блюдо | E37: Плов из говядины | F37: 200 | G37: 18.8 | H37: 15.6 | I37: 18.6 | J37: 258 | K37: 21.61
D40: итого | F40: =SUM(F34:F39) -> 495 | G40: =SUM(G34:G39) -> 23.44 | H40: =SUM(H34:H39) -> 80.14 | I40: =SUM(I34:I39) -> 38.78 | J40: =SUM(J34:J39) -> 657.8 | K40: =SUM(K34:K39) -> 41.26
A41: =A6 -> 1 | B41: =B6 -> 4 | C41: Ужин 2 | D41: кисломол. | E41: Ряженка | F41: 200 | G41: 12 | H41: 2 | I41: 8.4 | J41: 134 | K41: 24.08
D42: фрукты | E42: Яблоки св. | F42: 100 | G42: 0.6 | H42: 0.6 | I42: 14.3 | J42: 68.6 | K42: 6.8
D43: напиток
D47: итого | F47: =SUM(F41:F46) -> 300 | G47: =SUM(G41:G46) -> 12.6 | H47: =SUM(H41:H46) -> 2.6 | I47: =SUM(I41:I46) -> 22.7 | J47: =SUM(J41:J46) -> 202.6 | K47: =SUM(K41:K46) -> 30.88
A48: =A6 -> 1 | B48: =B6 -> 4 | C48: Итого за день: | G48: 103.61 | H48: 221.31 | I48: 276.06 | J48: 3602 | K48: =K13+K18+K28+K33+K40+K47 -> 278.41
